bitfinex-derivatives/quotes_BTCF0:USTF0_20250911
["timestamp","ask_amount","ask_price","bid_price","bid_amount"]
[1757561339592,1.59700546,114200.0,114190.0,0.02271]
[1757561341592,1.59700546,114200.0,114190.0,0.10108159]
[1757561342186,0.3618,114200.0,114190.0,0.10108159]
[1757561342491,1.25588273,114200.0,114190.0,0.13493273]
[1757561342690,1.25588273,114200.0,114190.0,0.04381]
[1757561343393,1.25588273,114200.0,114190.0,0.02271]
[1757561343995,1.25588273,114200.0,114190.0,0.10108159]
[1757561344302,1.34700546,114200.0,114190.0,0.10108159]
[1757561346698,1.16476,114200.0,114190.0,0.10108159]
[1757561346891,1.34700546,114200.0,114190.0,0.10108159]
[1757561347396,0.54404546,114200.0,114190.0,0.10108159]
[1757561347595,1.34696546,114200.0,114190.0,0.10108159]
[1757561348201,3.11300546,114200.0,114190.0,0.10108159]
[1757561349494,3.11300546,114200.0,114190.0,0.02271]
[1757561352405,3.11300546,114200.0,114190.0,0.1324667]
[1757561353304,3.11300546,114200.0,114190.0,0.2108745]
[1757561353704,3.11300546,114200.0,114190.0,0.1011178]
[1757561355904,3.1332302,114200.0,114190.0,0.1011178]
[1757561357204,2.95098474,114200.0,114190.0,0.02271]
[1757561357405,3.1332302,114200.0,114190.0,0.1324667]
[1757561363509,2.3303102,114200.0,114190.0,0.1324667]
[1757561363707,3.1331902,114200.0,114190.0,0.1324667]
[1757561363907,3.1331902,114200.0,114190.0,0.21089648]
[1757561364208,3.1331902,114200.0,114190.0,0.10113978]
[1757561366709,3.1331502,114200.0,114190.0,0.12271978]
[1757561369312,2.95090474,114200.0,114190.0,0.12271978]
[1757561369520,3.1331502,114200.0,114190.0,0.12271978]
[1757561369813,3.1331502,114200.0,114190.0,0.1540467]
[1757561370109,3.1331502,114200.0,114190.0,0.04429]
[1757561370316,3.1331502,114200.0,114190.0,0.02271]
[1757561371311,2.3303102,114200.0,114190.0,0.02271]
[1757561371513,3.1331502,114200.0,114190.0,0.02271]
[1757561372613,3.1331502,114200.0,114190.0,0.1324667]
[1757561379013,3.1331502,114200.0,114190.0,0.02271]
[1757561379812,3.47427293,114200.0,114180.0,0.0694048]
[1757561380012,0.54304546,114190.0,114170.0,0.01365]
[1757561380307,1.57396436,114180.0,114170.0,0.01365]
[1757561380512,1.59439418,114180.0,114170.0,0.01365]
[1757561381215,1.45760606,114180.0,114170.0,0.01365]
[1757561381617,1.45764606,114180.0,114170.0,0.01365]
[1757561382418,0.65480606,114180.0,114170.0,0.01465]
[1757561382611,1.45764606,114180.0,114170.0,0.01465]
[1757561383922,1.45764606,114180.0,114170.0,0.01665]
[1757561385121,1.52937773,114180.0,114170.0,0.01665]
[1757561386727,0.72653773,114180.0,114170.0,0.01665]
[1757561386916,1.52941773,114180.0,114170.0,0.01665]
[1757561389126,1.66620585,114180.0,114170.0,0.01665]
[1757561389623,1.25584149,114180.0,114170.0,0.01665]
[1757561389823,0.45296149,114180.0,114170.0,0.03823]
[1757561390022,1.25584149,114180.0,114170.0,0.03823]
[1757561390222,1.52941773,114180.0,114170.0,0.03823]
[1757561390423,0.72653773,114180.0,114170.0,0.03823]
[1757561390820,1.52941773,114180.0,114170.0,0.03823]
[1757561391527,3.29573773,114180.0,114170.0,0.03823]
[1757561392526,2.49285773,114180.0,114170.0,0.03823]
[1757561392727,3.29573773,114180.0,114170.0,0.03823]
[1757561393329,3.15894961,114180.0,114170.0,0.42501812]
[1757561393629,2.35606961,114180.0,114170.0,0.42501812]
[1757561393924,3.15894961,114180.0,114170.0,0.53477482]
[1757561394124,3.29573773,114180.0,114170.0,0.53477482]
[1757561394627,3.15894961,114180.0,114170.0,0.53477482]
[1757561394933,4.65894961,114180.0,114170.0,0.53477482]
[1757561395226,3.15894961,114180.0,114170.0,0.53477482]
[1757561396326,3.02216149,114180.0,114170.0,0.53477482]
[1757561396527,3.15894961,114180.0,114170.0,0.53477482]
[1757561400830,3.15894961,114180.0,114170.0,0.3979867]
[1757561401031,3.15894961,114180.0,114170.0,0.53477482]
[1757561401833,3.15894961,114180.0,114170.0,0.3979867]
[1757561402024,3.15894961,114180.0,114170.0,0.53477482]
[1757561402432,3.02216149,114180.0,114170.0,0.53477482]
[1757561402620,3.15894961,114180.0,114170.0,0.53477482]
[1757561402926,3.15894961,114180.0,114170.0,0.3979867]
[1757561403125,3.15894961,114180.0,114170.0,0.36651577]
[1757561403126,3.29573773,114180.0,114170.0,0.36651577]
[1757561403326,3.29573773,114180.0,114170.0,0.34493577]
[1757561404033,3.29573773,114180.0,114170.0,0.26665]
[1757561404432,3.29573773,114180.0,114170.0,0.3764067]
[1757561404728,3.68252585,114180.0,114170.0,0.1264067]
[1757561404935,3.68252585,114180.0,114170.0,0.2047215]
[1757561405134,3.68252585,114180.0,114170.0,0.0949648]
[1757561405534,3.54573773,114180.0,114170.0,0.0949648]
[1757561405735,3.68252585,114180.0,114170.0,0.0949648]
[1757561406836,3.54573773,114180.0,114170.0,0.0949648]
[1757561410126,3.54573773,114180.0,114170.0,0.01665]
[1757561410737,3.68252585,114180.0,114170.0,0.01665]
[1757561411741,3.68252585,114180.0,114170.0,0.0949648]
[1757561413144,3.68252585,114180.0,114170.0,0.01665]
[1757561413345,3.68252585,114180.0,114170.0,0.0949648]
[1757561414242,3.68252585,114180.0,114170.0,0.01665]
[1757561416548,3.54573773,114180.0,114170.0,0.01665]
[1757561419951,3.27216149,114180.0,114170.0,0.01665]
[1757561420250,3.54573773,114180.0,114170.0,0.01665]
[1757561422950,3.54573773,114180.0,114170.0,0.0949648]
[1757561423550,3.54573773,114180.0,114170.0,0.01665]
[1757561425649,3.54573773,114180.0,114170.0,0.0949648]
[1757561426251,3.68252585,114180.0,114170.0,0.0949648]
[1757561429149,3.43252585,114180.0,114170.0,0.0949648]
[1757561431249,3.43252585,114180.0,114170.0,0.0463148]
[1757561431448,3.43252585,114180.0,114170.0,0.0599048]
[1757561433452,3.43252585,114180.0,114170.0,0.01359]
[1757561434052,3.43328585,114180.0,114170.0,0.01359]
[1757561434254,2.62964585,114180.0,114170.0,0.01359]
[1757561434455,3.43328585,114180.0,114170.0,0.01359]
[1757561435555,3.02288149,114180.0,114170.0,0.03646]
[1757561435762,3.29645773,114180.0,114170.0,0.03646]
[1757561436152,2.49285773,114180.0,114170.0,0.03646]
[1757561436457,3.29629773,114180.0,114170.0,0.03646]
[1757561437764,3.29629773,114180.0,114170.0,0.01359]
[1757561437954,3.43308585,114180.0,114170.0,0.01359]
[1757561440261,3.43308585,114180.0,114170.0,0.09212822]
[1757561440460,3.20508473,114180.0,114170.0,0.09212822]
[1757561441763,2.40164473,114180.0,114170.0,0.09212822]
[1757561441965,3.20532473,114180.0,114170.0,0.09212822]
[1757561449972,3.29650635,114180.0,114170.0,0.09212822]
[1757561451673,3.02296149,114180.0,114170.0,0.09212822]
[1757561451972,3.29650635,114180.0,114170.0,0.09212822]
[1757561452573,3.02296149,114180.0,114170.0,0.09212822]
[1757561452776,3.29650635,114180.0,114170.0,0.09212822]
[1757561453970,3.29650635,114180.0,114170.0,0.01359]
[1757561455477,3.29650635,114180.0,114170.0,0.09212822]
[1757561458476,3.29650635,114180.0,114170.0,0.01359]
[1757561459675,3.29650635,114180.0,114170.0,0.09212822]
[1757561460767,3.20508473,114180.0,114170.0,0.11327822]
[1757561461180,3.20508473,114180.0,114170.0,0.09212822]
[1757561462081,2.40164473,114180.0,114170.0,0.09212822]
[1757561462280,3.20504473,114180.0,114170.0,0.09212822]
[1757561462475,3.20508473,114180.0,114170.0,0.09212822]
[1757561468977,2.40164473,114180.0,114170.0,0.09212822]
[1757561469183,3.20472473,114180.0,114170.0,0.09212822]
[1757561474886,3.56552473,114180.0,114170.0,0.09212822]
[1757561485400,3.38316149,114180.0,114170.0,0.09212822]
[1757561485602,3.56552473,114180.0,114170.0,0.09212822]
[1757561500710,3.38316149,114180.0,114170.0,0.09212822]
[1757561500911,3.56552473,114180.0,114170.0,0.09212822]
[1757561501112,3.56559958,114180.0,114170.0,0.09212822]
[1757561501607,3.56559958,114180.0,114170.0,0.11464822]
[1757561502312,3.65677722,114180.0,114170.0,0.11464822]
[1757561502812,3.65677722,114180.0,114170.0,0.09212822]
[1757561504711,3.65677722,114180.0,114170.0,0.11464822]
[1757561508714,3.65677722,114180.0,114170.0,0.09212822]
[1757561508913,3.65677722,114180.0,114170.0,0.11464822]
[1757561509715,3.65677722,114180.0,114170.0,0.09212822]
[1757561509917,3.65677722,114180.0,114170.0,0.11464822]
[1757561511313,3.79354766,114180.0,114170.0,0.09212822]
[1757561511717,3.79354766,114180.0,114170.0,0.09828822]
[1757561515821,2.99046766,114180.0,114170.0,0.09828822]
[1757561516023,3.79322766,114180.0,114170.0,0.09828822]
[1757561516722,2.99046766,114180.0,114170.0,0.09828822]
[1757561516922,3.79322766,114180.0,114170.0,0.09828822]
[1757561517315,2.99046766,114180.0,114170.0,0.09828822]
[1757561517516,3.79318766,114180.0,114170.0,0.01975]
[1757561520235,2.99046766,114180.0,114170.0,0.09828822]
[1757561520532,3.65637722,114180.0,114170.0,0.12153822]
[1757561521431,3.38283634,114180.0,114170.0,0.12153822]
[1757561521627,3.65637722,114180.0,114170.0,0.12153822]
[1757561523330,3.65637722,114180.0,114170.0,0.09828822]
[1757561524628,2.85369722,114180.0,114170.0,0.12153822]
[1757561524825,3.65637722,114180.0,114170.0,0.12153822]
[1757561526827,3.79314766,114180.0,114170.0,0.09828822]
[1757561528936,3.79314766,114180.0,114170.0,0.01975]
[1757561531338,3.79314766,114180.0,114170.0,0.09828822]
[1757561533644,3.79314766,114180.0,114170.0,0.09618889]
[1757561534144,4.04314766,114180.0,114170.0,0.01394]
[1757561534836,4.04314766,114180.0,114150.0,0.01187001]
[1757561535041,1.48168133,114160.0,114150.0,0.0227]
[1757561535241,2.28432133,114160.0,114150.0,0.0227]
[1757561535836,1.87401001,114160.0,114150.0,0.0227]
[1757561536232,2.28432133,114160.0,114150.0,0.0227]
[1757561538445,1.48168133,114160.0,114150.0,0.0227]
[1757561538743,2.28432133,114160.0,114150.0,0.0227]
[1757561539540,2.28432133,114160.0,114150.0,0.0130986]
[1757561541534,2.28432133,114160.0,114150.0,0.00609915]
[1757561541849,2.53432133,114160.0,114140.0,0.01238]
[1757561542049,0.63434088,114150.0,114140.0,0.01238]
[1757561543245,0.77111132,114150.0,114140.0,0.01238]
[1757561543545,0.77111132,114150.0,114140.0,0.01338]
[1757561544044,0.77111132,114150.0,114140.0,0.002]
[1757561544245,0.77111132,114150.0,114140.0,0.0157]
[1757561544846,1.43702088,114150.0,114140.0,0.0157]
[1757561545441,0.63434088,114150.0,114140.0,0.0157]
[1757561545748,1.43706088,114150.0,114140.0,0.03688]
[1757561547347,1.43706088,114150.0,114140.0,0.0157]
[1757561548348,0.63434088,114150.0,114140.0,0.0157]
[1757561548550,1.43706088,114150.0,114140.0,0.0157]
[1757561548854,1.56921569,114150.0,114140.0,0.0157]
[1757561551245,0.76649569,114150.0,114140.0,0.0157]
[1757561551548,0.49757044,114150.0,114140.0,0.03688]
[1757561551738,1.16356,114150.0,114140.0,0.03688]
[1757561551941,1.30033044,114150.0,114140.0,0.28688]
[1757561552443,1.16356,114150.0,114140.0,0.28688]
[1757561552638,1.43710088,114150.0,114140.0,0.28688]
[1757561555752,3.20398088,114150.0,114140.0,0.28688]
[1757561556851,3.20398088,114150.0,114140.0,0.2657]
[1757561559352,3.20398088,114150.0,114140.0,0.0157]
[1757561562953,3.20398088,114150.0,114140.0,0.0157]
[1757561563349,3.20398088,114150.0,114140.0,0.09402771]
[1757561564358,3.11290644,114150.0,114140.0,0.09402771]
[1757561565057,2.93044,114150.0,114140.0,0.09402771]
[1757561565246,3.11290644,114150.0,114140.0,0.09402771]
[1757561580568,3.11290644,114150.0,114140.0,0.09517771]
[1757561580868,3.11290644,114150.0,114140.0,0.01685]
[1757561581667,3.11290644,114150.0,114140.0,0.09517771]
[1757561589872,3.11290644,114150.0,114140.0,0.01685]
[1757561590474,2.31014644,114150.0,114140.0,0.01685]
[1757561590675,3.11258644,114150.0,114140.0,0.01685]
[1757561590975,3.11258644,114150.0,114140.0,0.0394]
[1757561592081,2.93008,114150.0,114140.0,0.0394]
[1757561592277,3.11254644,114150.0,114140.0,0.0394]
[1757561594672,2.31014644,114150.0,114140.0,0.0394]
[1757561594877,3.11250644,114150.0,114140.0,0.0394]
[1757561607203,2.31014644,114150.0,114140.0,0.0394]
[1757561607400,2.92988,114150.0,114140.0,0.0394]
[1757561607703,3.11234644,114150.0,114140.0,0.0394]
[1757561608101,3.10234644,114150.0,114140.0,0.0394]
[1757561611520,3.10234644,114150.0,114140.0,0.0294]
[1757561612202,3.10230644,114150.0,114140.0,0.0294]
[1757561613211,2.30014644,114150.0,114140.0,0.0294]
[1757561613402,2.9198,114150.0,114140.0,0.0294]
[1757561613601,3.10226644,114150.0,114140.0,0.0294]
[1757561620210,2.9198,114150.0,114140.0,0.0294]
[1757561620512,3.10226644,114150.0,114140.0,0.0294]
[1757561621713,3.10226644,114150.0,114140.0,0.10791606]
[1757561623017,2.9198,114150.0,114140.0,0.10791606]
[1757561623212,3.10226644,114150.0,114140.0,0.10791606]
[1757561624316,3.19346762,114150.0,114140.0,0.10791606]
[1757561625919,3.19346762,114150.0,114140.0,0.0294]
[1757561626420,3.19346762,114150.0,114140.0,0.10791606]
[1757561627620,3.19346762,114150.0,114140.0,0.0294]
[1757561628119,3.19346762,114150.0,114140.0,0.08539335]
[1757561628316,3.58030143,114150.0,114130.0,0.1236967]
[1757561628511,0.77130143,114140.0,114130.0,0.1236967]
[1757561629019,0.77130143,114140.0,114130.0,0.01394]
[1757561629717,0.84198629,114140.0,114130.0,0.01394]
[1757561631118,0.84198629,114140.0,114130.0,0.01494]
[1757561631825,0.84198629,114140.0,114130.0,0.01394]
[1757561632021,0.85061376,114140.0,114130.0,0.01494]
[1757561636425,0.85061376,114140.0,114130.0,0.001]
[1757561636632,1.10061376,114140.0,114110.0,0.1234567]
[1757561636933,0.85843381,114120.0,114110.0,0.0364]
[1757561637430,0.99526762,114120.0,114110.0,0.0364]
[1757561638333,0.99526762,114120.0,114110.0,0.0374]
[1757561639132,1.79714762,114120.0,114110.0,0.0374]
[1757561639332,0.99526762,114120.0,114110.0,0.0374]
[1757561639533,1.79714762,114120.0,114110.0,0.0374]
[1757561640927,1.79714762,114120.0,114110.0,0.0404]
[1757561641535,1.79714762,114120.0,114110.0,0.0394]
[1757561641834,1.73744762,114120.0,114110.0,0.0414]
[1757561642331,1.87428143,114120.0,114110.0,0.0414]
[1757561642536,1.87428143,114120.0,114110.0,0.0187]
[1757561649338,1.07240143,114120.0,114110.0,0.0187]
[1757561649637,1.87432143,114120.0,114110.0,0.0187]
[1757561651139,2.12432143,114120.0,114100.0,0.0078]
[1757561651342,0.63446762,114110.0,114100.0,0.0078]
[1757561651543,0.65517306,114110.0,114100.0,0.0078]
[1757561652743,0.65517306,114110.0,114100.0,0.0138]
[1757561653437,0.65517306,114110.0,114100.0,0.0118]
[1757561653641,0.65517306,114110.0,114100.0,0.0148]
[1757561654741,1.45709306,114110.0,114100.0,0.02813]
[1757561656037,1.45709306,114110.0,114100.0,0.05083]
[1757561657942,0.65517306,114110.0,114100.0,0.05083]
[1757561658145,0.65517306,114110.0,114100.0,0.02813]
[1757561658344,1.45709306,114110.0,114100.0,0.05083]
[1757561659845,0.65517306,114110.0,114100.0,0.05083]
[1757561660042,1.45709306,114110.0,114100.0,0.05083]
[1757561661145,3.22449306,114110.0,114100.0,0.05083]
[1757561664137,2.28573925,114110.0,114100.0,0.04303]
[1757561664342,2.95078544,114110.0,114100.0,0.29303]
[1757561664546,2.28573925,114110.0,114100.0,0.56669762]
[1757561664747,3.08761925,114110.0,114100.0,0.42986381]
[1757561667450,3.08761925,114110.0,114100.0,0.29303]
[1757561671045,3.08761925,114110.0,114100.0,0.42986381]
[1757561671243,2.95078544,114110.0,114100.0,0.42986381]
[1757561671550,3.08761925,114110.0,114100.0,0.42986381]
[1757561675147,3.08761925,114110.0,114100.0,0.53962051]
[1757561676855,3.08761925,114110.0,114100.0,0.4027867]
[1757561677056,3.08761925,114110.0,114100.0,0.53962051]
[1757561677555,3.08745925,114110.0,114100.0,0.28962051]
[1757561678751,2.28573925,114110.0,114100.0,0.28962051]
[1757561678958,2.58982544,114110.0,114100.0,0.67645432]
[1757561679154,2.58982544,114110.0,114100.0,0.81645432]
[1757561679352,2.58982544,114110.0,114100.0,0.56645432]
[1757561679557,2.58982544,114110.0,114100.0,0.42645432]
[1757561679753,2.56912,114110.0,114100.0,0.78725432]
[1757561679949,2.56908,114110.0,114100.0,1.12487352]
[1757561680153,2.56908,114110.0,114100.0,1.49511682]
[1757561681758,1.7674,114110.0,114100.0,1.49511682]
[1757561681960,2.56904,114110.0,114100.0,1.49511682]
[1757561682158,1.7674,114110.0,114100.0,1.49511682]
[1757561682359,2.56904,114110.0,114100.0,1.49511682]
[1757561684563,2.56904,114110.0,114100.0,1.40391828]
[1757561685064,0.80164,114110.0,114100.0,1.40391828]
[1757561689071,0.80164,114110.0,114100.0,1.22506454]
[1757561689267,0.89287454,114110.0,114100.0,0.88383]
[1757561690265,0.80164,114110.0,114100.0,0.88383]
[1757561690671,0.89287454,114110.0,114100.0,0.97506454]
[1757561691170,0.89287454,114110.0,114100.0,0.88383]
[1757561691671,0.80164,114110.0,114100.0,0.97506454]
[1757561691864,0.80164,114110.0,114100.0,0.88383]
[1757561692069,0.80164,114110.0,114100.0,0.97506454]
[1757561695676,0.80164,114110.0,114100.0,0.49506454]
[1757561695871,0.80164,114110.0,114100.0,0.64506454]
[1757561697378,0.80164,114110.0,114100.0,0.55383]
[1757561697677,0.80164,114110.0,114100.0,0.64506454]
[1757561698078,0.80164,114110.0,114100.0,0.49506454]
[1757561698277,0.89287454,114110.0,114100.0,0.49506454]
[1757561699277,0.80164,114110.0,114100.0,0.49506454]
[1757561700979,0.80164,114110.0,114100.0,0.40383]
[1757561701170,0.80164,114110.0,114100.0,0.49506454]
[1757561701878,0.80164,114110.0,114100.0,0.40383]
[1757561702081,0.80164,114110.0,114100.0,0.49506454]
[1757561703684,2.21923454,114120.0,114110.0,0.01364]
[1757561703883,3.02059454,114120.0,114110.0,0.14620419]
[1757561705186,3.02055454,114120.0,114110.0,0.14620419]
[1757561705387,2.21923454,114120.0,114110.0,0.14620419]
[1757561705584,3.02055454,114120.0,114110.0,0.14620419]
[1757561705974,3.02055454,114120.0,114110.0,0.14720419]
[1757561706274,3.02055454,114120.0,114110.0,0.14920419]
[1757561706786,3.02055454,114120.0,114110.0,0.24043873]
[1757561708087,3.02055454,114120.0,114110.0,0.14920419]
[1757561708786,3.02055454,114120.0,114110.0,0.03924]
[1757561709085,3.02055454,114120.0,114110.0,0.14929579]
[1757561709488,3.02055454,114120.0,114110.0,0.03924]
[1757561710688,3.02055454,114120.0,114110.0,0.14931801]
[1757561711090,3.11178908,114120.0,114110.0,0.03924]
[1757561711289,3.11178908,114120.0,114110.0,0.04704]
[1757561711489,3.02055454,114120.0,114110.0,0.04704]
[1757561712684,3.36178908,114120.0,114110.0,0.02444]
[1757561713191,2.56046908,114120.0,114110.0,0.04704]
[1757561713384,3.27047454,114120.0,114110.0,0.04704]
[1757561713582,3.27047454,114120.0,114110.0,0.13827454]
[1757561713780,3.02047454,114120.0,114110.0,0.04704]
[1757561713990,3.02047454,114120.0,114110.0,0.15711801]
[1757561716886,3.11170908,114120.0,114110.0,0.15711801]
[1757561721796,2.92924,114120.0,114110.0,0.15711801]
[1757561721993,3.11170908,114120.0,114110.0,0.15711801]
[1757561723194,3.36170908,114120.0,114110.0,0.13451801]
[1757561724692,3.36170908,114120.0,114110.0,0.02444]
[1757561725395,3.36170908,114120.0,114110.0,0.04669]
[1757561727196,3.36170908,114120.0,114110.0,0.02444]
[1757561727994,3.45294362,114120.0,114110.0,0.12087801]
[1757561728497,3.45294362,114120.0,114110.0,0.0108]
[1757561729796,3.45294362,114120.0,114090.0,0.12340801]
[1757561729998,0.54326908,114100.0,114090.0,0.12340801]
[1757561730302,1.34434908,114100.0,114090.0,0.14565801]
[1757561731001,1.34434908,114100.0,114090.0,0.14765801]
[1757561731201,1.34434908,114100.0,114090.0,0.14865801]
[1757561732000,1.34434908,114100.0,114090.0,0.14965801]
[1757561732702,1.41557035,114100.0,114090.0,0.15165801]
[1757561733600,0.43202127,114100.0,114090.0,0.15165801]
[1757561733903,1.41557035,114100.0,114090.0,0.15165801]
[1757561734102,1.32433581,114100.0,114090.0,0.15165801]
[1757561736302,0.52325581,114100.0,114090.0,0.15165801]
[1757561736504,1.32433581,114100.0,114090.0,0.15165801]
[1757561737107,0.52325581,114100.0,114090.0,0.15165801]
[1757561737304,1.32429581,114100.0,114090.0,0.15165801]
[1757561738905,1.23306127,114100.0,114090.0,0.15165801]
[1757561739105,1.32429581,114100.0,114090.0,0.15165801]
[1757561740802,0.43202127,114100.0,114090.0,0.49289255]
[1757561741109,0.07122127,114100.0,114090.0,0.49289255]
[1757561741306,0.80104,114100.0,114090.0,0.49289255]
[1757561742109,0.87176366,114100.0,114090.0,0.49289255]
[1757561742308,0.07072366,114100.0,114090.0,0.49289255]
[1757561742509,0.80104,114100.0,114090.0,0.49289255]
[1757561742711,0.45203454,114110.0,114090.0,0.49289255]
[1757561742910,0.3608,114110.0,114100.0,0.12712454]
[1757561743106,2.47993702,114120.0,114100.0,0.12712454]
[1757561743307,2.128,114120.0,114110.0,0.10487454]
[1757561743604,2.929,114120.0,114110.0,0.12712454]
[1757561743800,2.5682,114120.0,114110.0,0.23720255]
[1757561743997,2.929,114120.0,114110.0,0.23720255]
[1757561744198,3.02023454,114120.0,114110.0,0.14596801]
[1757561745311,2.929,114120.0,114110.0,0.14596801]
[1757561746114,3.02023454,114120.0,114110.0,0.23720255]
[1757561746313,3.06586117,114120.0,114110.0,0.28382918]
[1757561746516,3.06586117,114120.0,114110.0,0.28482918]
[1757561746917,3.06586117,114120.0,114110.0,0.53482918]
[1757561747108,3.06582117,114120.0,114110.0,0.53482918]
[1757561747306,2.128,114120.0,114110.0,0.62244078]
[1757561747618,2.128,114120.0,114110.0,1.12002394]
[1757561747619,2.56816,114120.0,114110.0,1.12002394]
[1757561747821,1.7322,114120.0,114110.0,1.61002394]
[1757561748118,2.53316,114120.0,114110.0,1.76656886]
[1757561750621,2.53316,114120.0,114110.0,1.62970769]
[1757561750821,2.53316,114120.0,114110.0,1.76656886]
[1757561751022,2.53316,114120.0,114110.0,1.62970769]
[1757561752326,2.53316,114120.0,114110.0,1.38555117]
[1757561752526,2.67002117,114120.0,114110.0,1.13555117]
[1757561757223,2.67002117,114120.0,114110.0,0.99869]
[1757561757432,2.67861117,114120.0,114110.0,1.13555117]
[1757561758318,2.67861117,114120.0,114110.0,1.24499401]
[1757561758525,2.67861117,114120.0,114110.0,1.10813284]
[1757561758729,2.67861117,114120.0,114110.0,1.24499401]
[1757561759624,2.54175,114120.0,114110.0,1.24499401]
[1757561759830,2.67861117,114120.0,114110.0,1.24499401]
[1757561761725,2.81547234,114120.0,114110.0,0.28419401]
[1757561761928,3.17627234,114120.0,114110.0,0.28419401]
[1757561763230,3.03941117,114120.0,114110.0,0.28419401]
[1757561763629,1.74079,114120.0,114110.0,0.28419401]
[1757561763830,2.54139,114120.0,114110.0,0.28419401]
[1757561764031,2.67825117,114120.0,114110.0,0.28419401]
[1757561764227,2.54139,114120.0,114110.0,0.28419401]
[1757561764429,2.67825117,114120.0,114110.0,0.28419401]
[1757561764627,1.87765117,114120.0,114110.0,0.28419401]
[1757561764932,2.54135,114120.0,114110.0,0.28419401]
[1757561765132,2.67821117,114120.0,114110.0,0.28419401]
[1757561765934,2.54135,114120.0,114110.0,0.28419401]
[1757561766232,2.54135,114120.0,114110.0,0.17475117]
[1757561766626,0.36939,114130.0,114120.0,0.03508]
[1757561766931,1.30681117,114130.0,114120.0,0.17194117]
[1757561769235,1.30681117,114130.0,114120.0,0.03508]
[1757561769632,1.30681117,114130.0,114120.0,0.17194117]
[1757561769934,1.30781117,114130.0,114120.0,0.17194117]
[1757561770833,1.30781117,114130.0,114120.0,0.03508]
[1757561771022,1.30781117,114130.0,114120.0,0.17194117]
[1757561771424,1.30781117,114130.0,114120.0,0.28138401]
[1757561772939,1.30773117,114130.0,114120.0,0.28138401]
[1757561773942,1.17087,114130.0,114120.0,0.28138401]
[1757561774344,1.30773117,114130.0,114120.0,0.28138401]
[1757561775643,1.17087,114130.0,114120.0,0.28138401]
[1757561775843,1.30773117,114130.0,114120.0,0.28138401]
[1757561777243,1.17087,114130.0,114120.0,0.28138401]
[1757561777444,1.30773117,114130.0,114120.0,0.28138401]
[1757561780546,1.17087,114130.0,114120.0,0.28138401]
[1757561780747,1.30773117,114130.0,114120.0,0.28138401]
[1757561785452,1.17087,114130.0,114120.0,0.28138401]
[1757561785753,1.30773117,114130.0,114120.0,0.28138401]
[1757561787353,1.17087,114130.0,114120.0,0.28138401]
[1757561787653,1.30773117,114130.0,114120.0,0.28138401]
[1757561787852,1.17087,114130.0,114120.0,0.28138401]
[1757561788055,1.30773117,114130.0,114120.0,0.28138401]
[1757561788453,1.17087,114130.0,114120.0,0.28138401]
[1757561788653,1.30773117,114130.0,114120.0,0.28138401]
[1757561791858,1.17087,114130.0,114120.0,0.28138401]
[1757561792155,1.30773117,114130.0,114120.0,0.17194117]
[1757561793055,0.50725117,114130.0,114120.0,0.03508]
[1757561793360,1.30761117,114130.0,114120.0,0.17194117]
[1757561793749,1.30761117,114130.0,114120.0,0.30880234]
[1757561795056,1.30761117,114130.0,114120.0,0.03508]
[1757561795251,1.30761117,114130.0,114120.0,0.30880234]
[1757561796851,1.30761117,114130.0,114120.0,0.03508]
[1757561797054,1.30761117,114130.0,114120.0,0.41879556]
[1757561797556,1.17075,114130.0,114120.0,0.41879556]
[1757561797755,1.30761117,114130.0,114120.0,0.41879556]
[1757561798258,1.30761117,114130.0,114120.0,0.28193439]
[1757561798646,1.17075,114130.0,114120.0,0.28193439]
[1757561798849,1.30761117,114130.0,114120.0,0.28193439]
[1757561799353,1.30761117,114130.0,114120.0,0.17194117]
[1757561801758,1.30761117,114130.0,114120.0,0.30880234]
[1757561803962,1.30761117,114130.0,114120.0,0.17194117]
[1757561806060,1.17075,114130.0,114120.0,0.17194117]
[1757561806264,1.30761117,114130.0,114120.0,0.17194117]
[1757561808369,1.17075,114130.0,114120.0,0.12630857]
[1757561808663,1.17075,114130.0,114120.0,0.03508]
[1757561808852,1.17075,114130.0,114120.0,0.12630857]
[1757561809658,1.26197857,114130.0,114120.0,0.03508]
[1757561813667,1.26197857,114130.0,114110.0,0.26141349]
[1757561813860,0.46061857,114120.0,114110.0,0.28284349]
[1757561814166,0.55184714,114120.0,114110.0,0.17018492]
[1757561814564,0.46061857,114120.0,114110.0,0.17018492]
[1757561814763,0.46061857,114120.0,114110.0,0.30159805]
[1757561814964,0.46061857,114120.0,114110.0,0.14505313]
[1757561816470,0.46061857,114120.0,114110.0,0.03607]
[1757561817174,1.16951,114120.0,114110.0,0.13605857]
[1757561817361,1.26073857,114120.0,114110.0,0.13605857]
[1757561817764,1.26073857,114120.0,114110.0,0.04483]
[1757561818079,1.26073857,114120.0,114110.0,0.13705857]
[1757561818568,1.26073857,114120.0,114110.0,0.15575713]
[1757561823068,1.26073857,114120.0,114110.0,0.04583]
[1757561824165,1.26073857,114120.0,114110.0,0.0244]
[1757561825171,1.35196714,114120.0,114110.0,0.0244]
[1757561825770,1.35196714,114120.0,114110.0,0.04583]
[1757561826673,0.36939,114120.0,114110.0,0.04583]
[1757561826869,1.16967,114120.0,114110.0,0.04583]
[1757561827073,1.26089857,114120.0,114110.0,0.04583]
[1757561828173,1.26089857,114120.0,114110.0,0.15575713]
[1757561828376,1.26081857,114120.0,114110.0,0.15575713]
[1757561828969,0.00859,114120.0,114110.0,0.2469857]
[1757561829174,0.80875,114120.0,114110.0,0.2469857]
[1757561831673,0.3608,114130.0,114110.0,0.5845975]
[1757561831875,0.80016,114120.0,114110.0,0.6342418]
[1757561832177,0.80016,114120.0,114110.0,0.4942418]
[1757561832682,0.80016,114120.0,114110.0,0.65078672]
[1757561832884,0.80016,114120.0,114110.0,0.74201529]
[1757561834173,0.80016,114120.0,114110.0,0.74101529]
[1757561835277,0.80875,114120.0,114110.0,0.74101529]
[1757561835479,0.80875,114120.0,114110.0,0.74201529]
[1757561835678,0.80875,114120.0,114110.0,0.65440349]
[1757561840882,0.3608,114130.0,114110.0,0.65440349]
[1757561841083,0.36939,114130.0,114120.0,0.23529116]
[1757561841282,2.22736889,114140.0,114120.0,0.32651973]
[1757561841480,2.23595889,114140.0,114130.0,0.23514116]
[1757561841684,3.03607889,114140.0,114130.0,0.23514116]
[1757561841984,3.12730746,114140.0,114130.0,0.23514116]
[1757561842184,3.12730746,114140.0,114130.0,0.14391259]
[1757561842886,3.12730746,114140.0,114130.0,0.15267259]
[1757561843186,3.03607889,114140.0,114130.0,0.15267259]
[1757561843686,3.12930746,114140.0,114130.0,0.15267259]
[1757561844187,3.12930746,114140.0,114130.0,0.24390116]
[1757561845283,3.03807889,114140.0,114130.0,0.24390116]
[1757561845485,3.13030746,114140.0,114130.0,0.24390116]